{"text_format":"3","workbook":"xlsx","n_sheets":2,"sheets":["Критерии оценки","Перечень профессиональных задач"],"read":"whole","date_system":"1900"}

{"sheet":"Критерии оценки","index":0,"n_rows":212,"n_cols":17,"rows_kept":212}
[" "]
[null,"Мероприятие",null,"Региональный этап Чемпионата по профессиональному мастерству \"Профессионалы\" в 2026 г"]
[null,"Наименование компетенции",null,"Геопространственные технологии (юниоры)"]
[]
["Код","Подкритерий","Тип аспекта","Аспект","Судейский балл","Методика проверки аспекта","Требование или номинальный размер","Проф. задача","Макс. балл",null,null,1,2,3,4,5,6]
["А","Инженерно-геодезические работы при строительстве",{"$nulls":6},{"$f":"SUM(I8:I75)","v":{"v":37,"d":"37.00"}},null,1,{"$f":"SUM(I8+I9+I10)","v":{"v":2,"d":"2.00"}},{"$f":"I11+I12","v":{"v":2,"d":"2.00"}}]
[1,"Организация безопасности и коммуникационные навыки при выполнении работ",{"$nulls":8},2,null,null,{"$f":"I14","v":{"v":1,"d":"1.00"}},{"$f":"SUM(I19+I20)","v":{"v":1.4,"d":"1.40"}},{"$f":"I15+I27+I17","v":{"v":3.1100000000000003,"d":"3.11"}},{"$f":"SUM(I16+I18+I21+I22+I23+I24+I25+I26+I28)","v":{"v":5.1,"d":"5.10"}}]
[null,null,"И","Приемка бланков конкурсного задания конкурсанта в надлежащем формате",null,"Ставим «Нет» при условии, что поврежденные/испорченные листы КЗ сданы ГЭ (сложенные пополам, промокшие, вне мультифорки, с деформацией листа КЗ)","Да/Нет",1,{"v":0.5,"d":"0.50"},null,3,null,null,{"$f":"I34+I39","v":{"v":2,"d":"2.00"}},{"$f":"SUM(I30+I33+I35+I36+I38+I40+I41+I45)","v":{"v":4.8,"d":"4.80"}},{"$f":"I37+I42+I50","v":{"v":5.859999999999999,"d":"5.86"}},{"$f":"SUM(I31+I32+I43+I44)","v":{"v":1.5000000000000002,"d":"1.50"}}]
[null,null,"И","Чистота рабочего места во время и после выполнения конкурсного задания (полевые и камеральные работы)",null,"Например: не оставлять бутылки, салфетки, фантики, жевательные резинки и т.п.","Да/Нет",1,{"v":0.5,"d":"0.50"},null,4,null,null,{"$f":"I57","v":{"v":1,"d":"1.00"}},{"$f":"SUM(I56+I58+I59+I60+I63)","v":{"v":3.2,"d":"3.20"}},{"$f":"I61","v":1.03},{"$f":"I62","v":{"v":0.3,"d":"0.30"}}]
[null,null,"И","Саблюдение всех требований охраны труда и техники безопасности ",null,"См. инструкцию по охране труда (Приложение 3)","Да/Нет",1,{"v":1,"d":"1.00"},null,5,{"$nulls":3},{"$f":"I73","v":{"v":0.6,"d":"0.60"}},null,{"$f":"SUM(I69+I70+I71+I72+I74+I75)","v":{"v":2.1,"d":"2.10"}}]
[null,null,"И","Осмысление поступающей информации в критической ситуации профессиональной направленности",null,"Ставим «Нет» при отсутствии профессиональной компетентности конкурсанта в сложивщейся ситуации","Да/Нет",2,{"v":1,"d":"1.00"},null,null,{"$f":"SUM(L6:L10)","v":2},{"$f":"SUM(M6:M10)","v":2},{"$f":"SUM(N6:N10)","v":4},{"$f":"SUM(O6:O10)","v":9.999999999999998},9.999999999999998,{"$f":"SUM(Q6:Q10)","v":9}]
[null,null,"И","Профессиональная формулировка сложившейся проблемы при выполнении топографо-геодезических работ до экспертов",null,null,"Да/Нет",2,{"v":1,"d":"1.00"},null,"эталон",2,2,4,10,10,9]
[2,"Выполнение топографической съемки участка местности с помощью механического тахеометра"]
[null,"","И","Зарисовка абриса выполнена согласно КЗ","",null,"Да/Нет",3,{"v":1,"d":"1.00"}]
[null,"","И","Прибор приведен в рабочее положение","","","Да/Нет",5,1.25]
[null,"","И","Импорт данных с USB-накопителя  выполнен корректно","","","Да/Нет",6,0.56]
[null,null,"И","Координаты станции определены методом согласо КЗ",null,null,"Да/Нет",5,1.33]
[null,"","И","Скриншот качества ориентирования выполнен и сохранен согласно КЗ","","","Да/Нет",6,0.56]
[null,"","И","Качество определения коррдинат станции соответствует заявленым требованиям КЗ","",null,"Да/Нет",4,{"v":0.8,"d":"0.80"}]
[null,"","И","Топографическая съемка участка выполнена в объеме согласно КЗ",null,null,"Да/Нет",4,{"v":0.6,"d":"0.60"}]
[null,"","И","Точечным объектам присвоен идентификатор пикетажа согласно КЗ","","","Да/Нет",6,0.57]
[null,"","И","Линейным объектам присвоен идентификатор пикетажа  согласно КЗ","","","Да/Нет",6,0.57]
[null,null,"И","Площадным объектам присвоен идентификатор пикетажа  согласно КЗ","","","Да/Нет",6,0.57]
[null,null,"И","Полевое кодирование использовалось",null,null,"Да/Нет",6,0.57]
[null,null,"И","Каждой съемочной точке присвоен код ",null,null,"Да/Нет",6,0.57]
[null,null,"И","Каждой съемочной точке присвоен код согласно ситуации",null,null,"Да/Нет",6,0.57]
[null,null,"И","Экспорт проекта  выполнен согласно КЗ","","","Да/Нет",5,0.53]
[null,null,"И","Конкурсное задание и USB-накопитель сданы Главному эксперту","","","Да/Нет",6,0.56]
[3,"Полевые геодезические работы при инспектировании фасада зданий"]
[null,null,"И","Рекогнасцировка объекта выполнена согласно КЗ",null,null,"Да/Нет",4,{"v":0.6,"d":"0.60"}]
[null,null,"И","Рабочий проект в полевом ПО электронного тахеометра создан согласно требованиям КЗ",null,null,"Да/Нет",6,{"v":0.4,"d":"0.40"}]
[null,null,"И","Импорт каталога опорных пунктов с USB-накопителя в новый рабочий проект выполнен корректно",null,null,"Да/Нет",6,{"v":0.4,"d":"0.40"}]
[null,null,"И","Ориентирование инструмента на 1-й станции выполнено согласно требованиям КЗ",null,null,"Да/Нет",4,{"v":0.6,"d":"0.60"}]
[null,null,"И","Скриншот дисплея полевого ПО с качеством установки тахеометра на 1-й станции сохранён",null,null,"Да/Нет",3,{"v":1,"d":"1.00"}]
[null,null,"И","Точность ориентирования тахеометра на 1-й станции составляет не более 5 мм плане",null,null,"Да/Нет",4,{"v":0.6,"d":"0.60"}]
[null,null,"И","Точность ориентирования тахеометра на 1-й станции составляет не более 5 мм по высоте",null,null,"Да/Нет",4,{"v":0.6,"d":"0.60"}]
[null,null,"И","Съёмка фасада здания с 1-й станции выполнена",null,null,"Да/Нет",5,1.93]
[null,null,"И","Ориентирование инструмента на 2-й станции выполнено согласно требованиям КЗ",null,null,"Да/Нет",4,{"v":0.6,"d":"0.60"}]
[null,null,"И","Скриншот дисплея полевого ПО с качеством установки тахеометра на 2-й станции сохранён",null,null,"Да/Нет",3,{"v":1,"d":"1.00"}]
[null,null,"И","Точность ориентирования тахеометра на 2-й станции составляет не более 5 мм плане",null,null,"Да/Нет",4,{"v":0.6,"d":"0.60"}]
[null,null,"И","Точность ориентирования тахеометра на 2-й станции составляет не более 5 мм по высоте",null,null,"Да/Нет",4,{"v":0.6,"d":"0.60"}]
[null,null,"И","Съёмка фасада здания со 2-й станции выполнена",null,null,"Да/Нет",5,1.93]
[null,null,"И","Экспорт рабочего проекта на USB-накопитель в формате *.HeXML выполнен корректно",null,null,"Да/Нет",6,{"v":0.4,"d":"0.40"}]
[null,null,"И","Конкурсное задание и USB-накопитель сданы Главному эксперту",null,null,"Да/Нет",6,{"v":0.3,"d":"0.30"}]
[null,null,"С","Выполнение полевых работ",{"$nulls":3},4,{"v":0.6,"d":"0.60"}]
[{"$nulls":4},0,"Исполнение не соответствует отраслевому стандарту"]
[{"$nulls":4},1,"Исполнение соответствует отраслевому стандарту"]
[{"$nulls":4},2,"Исполнение соответствует отраслевому стандарту и в некоторых отношениях превосходит его"]
[{"$nulls":4},3,"Исполнение полностью превосходит отраслевой стандарт и оценивается как отличное"]
[null,null,"С","Навыки работы с обородуванием и аксессуарами",{"$nulls":3},5,{"v":2,"d":"2.00"}]
[{"$nulls":4},0,"Исполнение не соответствует отраслевому стандарту"]
[{"$nulls":4},1,"Исполнение соответствует отраслевому стандарту"]
[{"$nulls":4},2,"Исполнение соответствует отраслевому стандарту и в некоторых отношениях превосходит его"]
[{"$nulls":4},3,"Исполнение полностью превосходит отраслевой стандарт и оценивается как отличное"]
[4,"Решение прикладных геодезических задач"]
[null,null,"И","Площадь заданного земельного участка вычислена согласно КЗ",null,null,"Да/Нет",4,0.64]
[null,null,"И","Результаты определения площади заданного земельного участка сохранена согласно КЗ",null,null,"Да/Нет",3,{"v":1,"d":"1.00"}]
[null,null,"И","Качество определения площади участка не отличается от эталонного значения более чем на 15%",null,null,"Да/Нет",4,0.64]
[null,null,"И","Высота провиса провода между столбами на полигоне определена согласно КЗ",null,null,"Да/Нет",4,0.64]
[null,null,"И","Результат определения высоты  недоступной точки сохранен согласно КЗ",null,null,"Да/Нет",4,0.64]
[null,null,"И","Электронный тахеометр и аксесуары сданы ТАПу",null,null,"Да/Нет",5,1.03]
[null,null,"И","Конкурсное задание и USB- накопитель сданы Главному эксперту",null,null,"Да/Нет",6,{"v":0.3,"d":"0.30"}]
[null,null,"С","Навыки выполнения прикладных геодезических задач",{"$nulls":3},4,0.64]
[{"$nulls":4},0,"Исполнение не соответствует отраслевому стандарту"]
[{"$nulls":4},1,"Исполнение соответствует отраслевому стандарту"]
[{"$nulls":4},2,"Исполнение соответствует отраслевому стандарту и в некоторых отношениях превосходит его"]
[{"$nulls":4},3,"Исполнение полностью превосходит отраслевой стандарт и оценивается как отличное"]
[5,"Съемка склада сыпучего материала"]
[null,null,"И","Рабочий проект создак согласно КЗ",null,null,"Да/Нет",6,{"v":0.3,"d":"0.30"}]
[null,null,"И","Импорт данных успешно выполнен",null,null,"Да/Нет",6,{"v":0.3,"d":"0.30"}]
[null,null,"И","Ориентирование инструмента выполнено согласно КЗ",null,null,"Да/Нет",6,{"v":0.4,"d":"0.40"}]
[null,null,"И","Скриншот качества ориентирования выполнен и сохранен согласно КЗ",null,null,"Да/Нет",6,{"v":0.3,"d":"0.30"}]
[null,null,"И","Съемка склада сыпучего материала выполнена согласна КЗ",null,null,"Да/Нет",4,{"v":0.6,"d":"0.60"}]
[null,null,"И","Идентификатор пикетажа ппри съемке склада сыпучего материала изменен согласно КЗ",null,null,"Да/Нет",6,{"v":0.4,"d":"0.40"}]
[null,null,"И","Зкспорт проекта с измерениями и твердыми точками выполнен согласно КЗ",null,null,"Да/Нет",6,{"v":0.4,"d":"0.40"}]
["Б","Работа в специализированном программном обеспечении ",{"$nulls":6},{"$f":"SUM(I78:I148)","v":{"v":32.00000000000001,"d":"32.00"}},null,null,1,2,3,4,5,6]
[1,"Организация безопасности и коммуникационные навыки при выполнении работ",{"$nulls":8},1,{"$f":"SUM(I78+I79+I80)","v":{"v":1,"d":"1.00"}},{"$f":"I81+I82","v":{"v":1,"d":"1.00"}}]
[null,null,"И","Приемка бланков конкурсного задания конкурсанта в надлежащем формате",null,"Ставим «Нет» при условии, что поврежденные/испорченные листы КЗ сданы ГЭ (сложенные пополам, промокшие, вне мультифорки, с деформацией листа КЗ)","Да/Нет",1,0.34,null,2,null,null,{"$f":"I89+I90+I91+I97+I98+I103+I104+I105","v":{"v":2.8799999999999994,"d":"2.88"}},{"$f":"SUM(I86+I87+I88+I94+I95)","v":{"v":4.300000000000001,"d":"4.30"}},{"v":0.6,"d":"0.60"},{"$f":"SUM(I84+I92+I93+I96+I99+I100+I101+I102+I106+I107+I108+I109)","v":{"v":4.199999999999999,"d":"4.20"}}]
[null,null,"И","Чистота рабочего места во время и после выполнения конкурсного задания (полевые и камеральные работы)",null,"Например: не оставлять бутылки, салфетки, фантики, жевательные резинки и т.п.","Да/Нет",1,0.33,null,3,null,null,{"$f":"I120+I123+I122","v":1.12},{"$f":"SUM(I121+I127+I129+I130+I131+I132+I134)","v":{"v":5.7,"d":"5.70"}},{"v":1.4,"d":"1.40"},{"v":4.8,"d":"4.80"}]
[null,null,"И","Саблюдение всех требований охраны труда и техники безопасности ",null,"См. инструкцию по охране труда (Приложение 3)","Да/Нет",1,0.33,null,4,{"$nulls":5},{"v":5,"d":"5.00"}]
[null,null,"И","Осмысление поступающей информации в критической ситуации профессиональной направленности",null,"Ставим «Нет» при отсутствии профессиональной компетентности конкурсанта в сложивщейся ситуации","Да/Нет",2,{"v":0.5,"d":"0.50"},null,null,{"$f":"SUM(L77:L80)","v":1},{"$f":"SUM(M77:M80)","v":1},3.9999999999999996,10,2,14]
[null,null,"И","Профессиональная формулировка сложившейся проблемы при выполнении топографо-геодезических работ до экспертов",null,null,"Да/Нет",2,{"v":0.5,"d":"0.50"},null,"эталон",1,1,4,10,2,14]
[2,"Камеральные геодезические работы"]
[null,"","И","На рабочем столе создана папка согдасно КЗ",null,null,"Да/Нет",6,0.34]
[null,null,"И","Проект импортирован согласно КЗ",null,null,"Да/Нет",5,{"v":0.6,"d":"0.60"}]
[null,"","И","Масштаб съемки в проекте соответствует КЗ",null,null,"Да/Нет",4,{"v":0.8,"d":"0.80"}]
[null,"","И","Точность плановых измерений соответствует КЗ",null,null,"Да/Нет",4,{"v":0.8,"d":"0.80"}]
[null,"","И","Уравнивание измерений выполнено",null,null,"Да/Нет",4,{"v":0.8,"d":"0.80"}]
[null,"","И","Каталог координат и высот пунктов планово-высотного обоснования сформирован и сохранен согласно КЗ",null,null,"Да/Нет",3,0.36]
[null,null,"И","Ведомость предобработки  сформирована и сохранена согласно КЗ",null,null,"Да/Нет",3,0.36]
[null,null,"И","Ведомость координат сформирована и сохранена согласно КЗ",null,null,"Да/Нет",3,0.36]
[null,null,"И","Экспорт проекта в План генеральный выполнен согласно КЗ",null,null,"Да/Нет",6,0.34]
[null,null,"И"," Набору проектов присвоено имя согласно КЗ",null,null,"Да/Нет",6,0.34]
[null,null,"И","Отрисовка ситуации выполнена согласно КЗ",null,null,"Да/Нет",4,0.95]
[null,null,"И","Построение поверхности выполнено",null,null,"Да/Нет",4,0.95]
[null,null,"И","Планшет сформирован согласно КЗ",null,null,"Да/Нет",6,0.34]
[null,null,"И","Все переменные поля планшета заполнены",null,null,"Да/Нет",3,0.36]
[null,null,"И","Чертеж сохранен согласно КЗ",null,null,"Да/Нет",3,0.36]
[null,null,"И","Поворотные точки границ земельного участка пронумерованы и соединены согласно КЗ",null,null,"Да/Нет",6,0.34]
[null,null,"И","Сетка квадратов запроектирована согласно КЗ",null,null,"Да/Нет",6,0.34]
[null,null,"И","Вид осей выбран согласно КЗ",null,null,"Да/Нет",6,0.34]
[null,null,"И","Цвет линий сетки выбран согласно КЗ",null,null,"Да/Нет",6,0.34]
[null,null,"И","Тип шрифта подписей выбран согласно КЗ",null,null,"Да/Нет",3,0.36]
[null,null,"И","Высота шрифта задана согласно КЗ",null,null,"Да/Нет",3,0.36]
[null,null,"И","Ведомость узлов строительной сетки создана и сохранена согласно КЗ",null,null,"Да/Нет",3,0.36]
[null,null,"И","Текстовый файл создан согласно КЗ",null,null,"Да/Нет",6,0.36]
[null,null,"И","Текстовый файл скопирован согласно КЗ",null,null,"Да/Нет",6,0.36]
[null,null,"И","Текстовый файл сохранен согласно КЗ",null,null,"Да/Нет",6,0.36]
[null,"","С","Навыки работы в ПО КРЕДО",{"$nulls":3},6,{"v":0.4,"d":"0.40"}]
[{"$nulls":4},0,"Исполнение не соответствует отраслевому стандарту"]
[{"$nulls":4},1,"Исполнение соответствует отраслевому стандарту"]
[{"$nulls":4},2,"Исполнение соответствует отраслевому стандарту и в некоторых отношениях превосходит его"]
[{"$nulls":4},3,"Исполнение полностью превосходит отраслевой стандарт и оценивается как отличное"]
[3,"Инспектирование поверхности в системе Leica Captivate"]
[null,null,"И","Рабочий проект в симуляторе полевого ПО создан согласно требованиям КЗ",null,null,"Да/Нет",6,{"v":0.6,"d":"0.60"}]
[null,null,"И","Импорт файла в формате *.TXT в рабочий проект выполнен корректно",null,null,"Да/Нет",6,{"v":0.6,"d":"0.60"}]
[null,null,"И","Проектная модель фасада здания в формате *.DXF загружена",null,null,"Да/Нет",6,{"v":0.6,"d":"0.60"}]
[null,null,"И","Проектная поверхность для инспектирования фасада здания задана согласно требованиям КЗ",null,null,"Да/Нет",6,{"v":0.6,"d":"0.60"}]
[null,null,"И","Фактическая поверхность для инспектирования фасада здания выбрана согласно требованиям КЗ",null,null,"Да/Нет",6,{"v":0.6,"d":"0.60"}]
[null,null,"И","Карта цветовых отклонений создана согласно сложности геометрии фасада инспектируемого здания",null,null,"Да/Нет",3,{"v":0.4,"d":"0.40"}]
[null,null,"И","Инспектирование фасада здания выполнено",null,null,"Да/Нет",4,{"v":0.8,"d":"0.80"}]
[null,null,"И","Скриншот статистического отчёта с результатами анализа сравнения сохранён",null,null,"Да/Нет",3,0.36]
[null,null,"И","Подробный отчёт с результатами сравнения каждой точки сохранён",null,null,"Да/Нет",3,0.36]
[null,null,"И","Установка и тахеометра выполнена согласно КЗ",null,null,"Да/Нет",5,{"v":0.7,"d":"0.70"}]
[null,null,"И","Прибор приведен в рабочее положение",null,null,"Да/Нет",5,{"v":0.7,"d":"0.70"}]
[null,null,"И","Импорт данных с USB-накопителя  выполнен корректно",null,null,"Да/Нет",6,{"v":0.6,"d":"0.60"}]
[null,null,"И","Установка станции выполена согласно КЗ",null,null,"Да/Нет",4,0.78]
[null,null,"И","Скриншот качества  ориентирования сохранет",null,null,"Да/Нет",6,{"v":0.6,"d":"0.60"}]
[null,null,"И","Поворотные точки земельного участка вынесены и закреплены согласно КЗ",null,null,"Да/Нет",4,0.78]
[null,null,"И","Площадь земельного участка вычислена согласно КЗ",null,null,"Да/Нет",4,0.88]
[null,null,"И","Вынос и закрепление строительной сетки на местности выполнен согласно КЗ",null,null,"Да/Нет",4,0.88]
[null,null,"И","Каждая вершина строительной сетки подписана согласно КЗ",null,null,"Да/Нет",4,0.78]
[null,null,"И","Экспорт проекта выполнен согласно КЗ",null,null,"Да/Нет",6,{"v":0.6,"d":"0.60"}]
[null,null,"С","Навыки работы в системе Leica Captivate",{"$nulls":3},4,{"v":0.8,"d":"0.80"}]
[{"$nulls":4},0,"Исполнение не соответствует отраслевому стандарту"]
[{"$nulls":4},1,"Исполнение соответствует отраслевому стандарту"]
[{"$nulls":4},2,"Исполнение соответствует отраслевому стандарту и в некоторых отношениях превосходит его"]
[{"$nulls":4},3,"Исполнение полностью превосходит отраслевой стандарт и оценивается как отличное"]
[4,"Вычисление объема склада сыпучего материала в программном комплексе NanoCAD"]
[null,null,"И","Текстовый файл скопирован согласно КЗ",null,null,"Да/Нет",6,{"v":0.5,"d":"0.50"}]
[null,null,"И","Точки верхнего слоя склада сыпучего материала созданы согласно КЗ",null,null,"Да/Нет",6,{"v":0.6,"d":"0.60"}]
[null,null,"И","Точки нижнего слоя склада сыпучего материала созданы согласно КЗ",null,null,"Да/Нет",6,{"v":0.6,"d":"0.60"}]
[null,null,"И","Границы нижнего слоя склада сыпучего материала созданы согласно КЗ",null,null,"Да/Нет",6,{"v":0.6,"d":"0.60"}]
[null,null,"И","Построение поверхности для точек верхнего слоя склада сыпучего материала выполнено согласно КЗ",null,null,"Да/Нет",6,{"v":0.6,"d":"0.60"}]
[null,null,"И","Редактирование ребер триангуляции поверхности для точек верхнего слоя склада сыпучего материала выполнено согласно КЗ",null,null,"Да/Нет",6,{"v":0.5,"d":"0.50"}]
[null,null,"И","Построение поверхности для точек нижнего слоя склада сыпучего материала выполнено согласно КЗ",null,null,"Да/Нет",6,{"v":0.6,"d":"0.60"}]
[null,null,"И","Ребра триангуляции поверхности для точек нижнего слоя склада сыпучего материала отредактированы согласно КЗ",null,null,"Да/Нет",6,{"v":0.5,"d":"0.50"}]
[null,null,"И","Чертех оформлен и сохранен согласно КЗ",null,null,"Да/Нет",6,{"v":0.5,"d":"0.50"}]
["В","Обмер помещений и конструктор для будущего дизайн-проекта",{"$nulls":6},{"$f":"SUM(I150:I206)","v":{"v":31.000000000000004,"d":"31.00"}},null,null,1,2,3,4,5,6]
[1,"Организация безопасности и коммуникационные навыки при выполнении работ",{"$nulls":8},1,{"$f":"I151+I152+I153","v":{"v":2,"d":"2.00"}},{"$f":"I154+I155","v":{"v":2,"d":"2.00"}}]
[null,null,"И","Приемка бланков конкурсного задания конкурсанта в надлежащем формате",null,"Ставим «Нет» при условии, что поврежденные/испорченные листы КЗ сданы ГЭ (сложенные пополам, промокшие, вне мультифорки, с деформацией листа КЗ)","Да/Нет",1,{"v":0.5,"d":"0.50"},null,2,null,null,{"$f":"SUM(I157+I158+I159+I160+I170+I171)","v":{"v":1.4000000000000001,"d":"1.40"}},{"$f":"SUM(I161+I162+I163+I164+I165+I166+I167+I168+I169)","v":{"v":6.4,"d":"6.40"}}]
[null,null,"И","Чистота рабочего места во время и после выполнения конкурсного задания (полевые и камеральные работы)",null,"Например: не оставлять бутылки, салфетки, фантики, жевательные резинки и т.п.","Да/Нет",1,{"v":0.5,"d":"0.50"},null,3,{"$nulls":3},{"$f":"SUM(I173+I174+I175+I176)","v":{"v":1.6,"d":"1.60"}},{"$f":"I178","v":{"v":1,"d":"1.00"}},0.5]
[null,null,"И","Саблюдение всех требований охраны труда и техники безопасности ",null,"См. инструкцию по охране труда (Приложение 3)","Да/Нет",1,{"v":1,"d":"1.00"},null,4,null,null,{"$f":"I197+I198","v":{"v":0.6,"d":"0.60"}},{"$f":"I206","v":{"v":1,"d":"1.00"}},{"$f":"I200","v":{"v":1,"d":"1.00"}},{"$f":"SUM(I180+I181+I182+I183+I184+I185+I186+I187+I188+I189+I190+I191+I192+I193+I194+I195+I196+I199+I201)","v":{"v":13.5,"d":"13.50"}}]
[null,null,"И","Осмысление поступающей информации в критической ситуации профессиональной направленности",null,"Ставим «Нет» при отсутствии профессиональной компетентности конкурсанта в сложивщейся ситуации","Да/Нет",2,{"v":1,"d":"1.00"},null,null,{"$f":"SUM(L150:L153)","v":2},{"$f":"SUM(M150:M153)","v":2},2,9,2,{"$f":"SUM(Q151:Q153)","v":14}]
[null,null,"И","Профессиональная формулировка сложившейся проблемы при выполнении топографо-геодезических работ до экспертов",null,null,"Да/Нет",2,{"v":1,"d":"1.00"},null,"эталон",2,2,2,9,2,14]
[2,"Обмер помещений и конструктор для будущего дизайн-проекта в ручном режиме"]
[null,null,"И","Составлен подробный абрис обмеряемой территории в планшете",null,null,"Да/Нет",3,0.23]
[null,null,"И","На абрисе отмечены все конструкции, имеющиеся на обмеряемой территории",null,null,"Да/Нет",3,0.23]
[null,null,"И","Каждое помещение пронумеровано",null,null,"Да/Нет",3,0.23]
[null,null,"И","На абрисе подписаны элементы помещений, согласно КЗ",null,null,"Да/Нет",3,0.23]
[null,null,"И","Измерена длина каждой стены помещения, согласно КЗ",null,null,"Да/Нет",4,{"v":0.7,"d":"0.70"}]
[null,null,"И","Длины каждой из стен помещения измерены на уровне 1,5 м",null,null,"Да/Нет",4,{"v":0.7,"d":"0.70"}]
[null,null,"И","Измерены высоты всех стен, согласно КЗ",null,null,"Да/Нет",4,{"v":0.7,"d":"0.70"}]
[null,null,"И","Измерены значения углов всех смежных стен, согласно КЗ",null,null,"Да/Нет",4,{"v":0.7,"d":"0.70"}]
[null,null,"И","Результаты измерений, записаны в таблице, согласно КЗ",null,null,"Да/Нет",4,{"v":0.7,"d":"0.70"}]
[null,null,"И","Углы помещений на абрисе пронумерованы",null,null,"Да/Нет",4,{"v":0.7,"d":"0.70"}]
[null,null,"И","Линейные размеры нанесены на абрис",null,null,"Да/Нет",4,{"v":0.7,"d":"0.70"}]
[null,null,"И","Вычислены площади всех дверных проемов, согласно КЗ",null,null,"Да/Нет",4,0.75]
[null,null,"И","Вычислены площади всех оконных проемов, согласно КЗ",null,null,"Да/Нет",4,0.75]
[null,null,"И","Результаты измерений и площади зафиксированы в таблице, согласно КЗ",null,null,"Да/Нет",3,0.24]
[null,null,"И","Чертеж оформлен в ПО согласно КЗ",null,null,"Да/Нет",3,0.24]
[3,"Обмер помещений и конструктор для будущего дизайн-проекта в автоматизированном режиме"]
[null,null,"И","Обмер помещений выполнен, использую функцию сбора данных",null,null,"Да/Нет",4,{"v":0.4,"d":"0.40"}]
[null,null,"И","Обмер помещений выполнен с одной станции",null,null,"Да/Нет",4,{"v":0.4,"d":"0.40"}]
[null,null,"И","Проект с измерениями импортирован согласно КЗ",null,null,"Да/Нет",4,{"v":0.4,"d":"0.40"}]
[null,null,"И","Абрис помещений составлен, согласно КЗ",null,null,"Да/Нет",4,{"v":0.4,"d":"0.40"}]
[null,null,"И","Проект с готовым абрисом сохранен, согласно КЗ",null,null,"Да/Нет",6,{"v":0.5,"d":"0.50"}]
[null,null,"И","Готовый абрис, лазерный дальномер, планшет и стилус сданы Главному эксперт в исправном состоянии",null,null,"Да/Нет",5,{"v":1,"d":"1.00"}]
[4,"Обработка данных для дизайн-проекта в 3D"]
[null,null,"И","Создан и сохранен новый чертеж, согласно КЗ",null,null,"Да/Нет",6,{"v":0.5,"d":"0.50"}]
[null,null,"И","Масштаб чертежа установлен, согласно КЗ",null,null,"Да/Нет",6,{"v":0.5,"d":"0.50"}]
[null,null,"И","Детальный план обмеряемой территории вычерчен, согласно КЗ",null,null,"Да/Нет",6,{"v":1.5,"d":"1.50"}]
[null,null,"И","На чертеже показано все, согласно КЗ",null,null,"Да/Нет",6,{"v":1,"d":"1.00"}]
[null,null,"И","На чертеже указаны все линейные размеры",null,null,"Да/Нет",6,{"v":1,"d":"1.00"}]
[null,null,"И","В офисном программном обеспечении создан слой \"Стены\", согласно КЗ",null,null,"Да/Нет",6,{"v":0.5,"d":"0.50"}]
[null,null,"И","В слое \"Стены\" вычерчены все соответствующие объекты",null,null,"Да/Нет",6,{"v":1,"d":"1.00"}]
[null,null,"И","В офисном программном обеспечении создан слой \"Оконные проемы\", согласно КЗ",null,null,"Да/Нет",6,{"v":0.5,"d":"0.50"}]
[null,null,"И","В слое \"Оконные проемы\" вычерчены все соответствующие объекты",null,null,"Да/Нет",6,{"v":0.5,"d":"0.50"}]
[null,null,"И","В офисном программном обеспечении создан слой \"Дверные проемы\", согласно КЗ",null,null,"Да/Нет",6,{"v":0.5,"d":"0.50"}]
[null,null,"И","В слое \"Дверные проемы\" вычерчены все соответствующие объекты",null,null,"Да/Нет",6,{"v":0.5,"d":"0.50"}]
[null,null,"И","В офисном программном обеспечении создан слой \"Размеры\", согласно КЗ",null,null,"Да/Нет",6,{"v":0.5,"d":"0.50"}]
[null,null,"И","В слое \"Размеры\" вычерчены все соответствующие объекты",null,null,"Да/Нет",6,{"v":1,"d":"1.00"}]
[null,null,"И","Вычислена площадь каждого помещения",null,null,"Да/Нет",6,{"v":1.5,"d":"1.50"}]
[null,null,"И","Площадь каждого помещения нанесена на чертеж",null,null,"Да/Нет",6,{"v":0.5,"d":"0.50"}]
[null,null,"И","Каждое помещение пронумеровано, согласно КЗ",null,null,"Да/Нет",6,{"v":0.5,"d":"0.50"}]
[null,null,"И","Проект с измерениями открыт в ПО, согласно КЗ",null,null,"Да/Нет",6,{"v":0.5,"d":"0.50"}]
[null,null,"И","Чертеж сохранен, согласно КЗ",null,null,"Да/Нет",3,{"v":0.3,"d":"0.30"}]
[null,null,"И","Все отклонения между объектами на двух чертежах занесены в таблицу, согласно КЗ",null,null,"Да/Нет",3,{"v":0.3,"d":"0.30"}]
[null,null,"И","Проект сохранен",null,null,"Да/Нет",6,{"v":0.5,"d":"0.50"}]
[null,null,"И","Все инструменты и оборудование сданы ГЭ, офисное ПО закрыто",null,null,"Да/Нет",5,{"v":1,"d":"1.00"}]
[null,null,"С","Навыки работы ПО Leica Captivate",null,null,"",6,{"v":0.5,"d":"0.50"}]
[{"$nulls":4},0,"Исполнение не соответствует отраслевому стандарту"]
[{"$nulls":4},1,"Исполнение соответствует отраслевому стандарту"]
[{"$nulls":4},2,"Исполнение соответствует отраслевому стандарту и в некоторых отношениях превосходит его"]
[{"$nulls":4},3,"Исполнение полностью превосходит отраслевой стандарт и оценивается как отличное"]
[null,null,"С","Навыки выполнения полевых работ ",null,null,"",4,{"v":1,"d":"1.00"}]
[{"$nulls":4},0,"Исполнение не соответствует отраслевому стандарту"]
[{"$nulls":4},1,"Исполнение соответствует отраслевому стандарту"]
[{"$nulls":4},2,"Исполнение соответствует отраслевому стандарту и в некоторых отношениях превосходит его"]
[{"$nulls":4},3,"Исполнение полностью превосходит отраслевой стандарт и оценивается как отличное"]
[]
[{"$nulls":5},"Итого",null,null,{"$f":"I6+I76+I149","v":{"v":100,"d":"100.00"}}]

{"sheet":"Перечень профессиональных задач","index":1,"n_rows":7,"n_cols":2,"rows_kept":7,"merged":[[0,0,0,1]]}
["Перечень профессиональных задач"]
[1,"Охрана труда"]
[2,"Менеджмент и бережливое производство"]
[3,"Нормативно-правовая документация в геодезическом и топографическом производстве"]
[4,"Технология выполнения геодезических работ в сферах профессиональной деятельности"]
[5,"Оборудование и инструменты"]
[6,"Офисное, полевое и специализированное ПО"]